Cogmind - Beta 9.1 --- EXPLORER MODE // 2019.11.11 @ 11:20:00 Player: negentropy Result: Self-destructed Performance ------------- Evolutions (1) 500 Regions Visited (3) 600 Robots Destroyed (6) 30 Value Destroyed (223) 223 Prototype IDs (0) 0 Alien Tech Used (0) 0 Bonus (0) 0 TOTAL SCORE: 1353 Bonus ------- None Cogmind --------- Core Integrity 383/400 Matter 300/300 Energy 250/250 System Corruption 0% Temperature Cool (0) Location -9/Mines Parts ------- Power (1) Ion Engine Propulsion (3) Aluminum Leg Aluminum Leg Aluminum Leg Utility (3) Medium Storage Unit Power Shielding Weapon (3) Assault Rifle Light Assault Rifle Inventory (8) Light Ion Engine Light Nuclear Core Improved Heat Sink Signal Interpreter Terrain Scanner Peak State ------------ Power Ion Engine Propulsion Aluminum Leg Aluminum Leg Utility Medium Storage Unit Power Shielding Light Armor Plating Weapon Small Laser Assault Rifle Light Assault Rifle Inventory Light Ion Engine Light Nuclear Core Aluminum Leg Improved Heat Sink Signal Interpreter Terrain Scanner [Rating: 10] Favorites ----------- Power Ion Engine Engine Ion Engine Propulsion Aluminum Leg Leg Aluminum Leg Utility Medium Storage Unit Storage Medium Storage Unit Protection Power Shielding Weapon Light Assault Rifle Energy Gun Small Laser Ballistic Gun Light Assault Rifle Build | -11 -10 -9 -9 ------- Run | Scr Mat Mat Min Slots Evolved 3 | . 1 2 . Power . | . . . . Propulsion 1 | . . 1 . Utility 1 | . 1 . . Weapon 1 | . . 1 . Parts Attached 11 | 7 2 2 . Power 1 | 1 . . . Engine 1 | 1 . . . Core . | . . . . Reactor . | . . . . Propulsion 3 | 2 . 1 . Treads . | . . . . Leg 3 | 2 . 1 . Wheel . | . . . . Hover . | . . . . Flight . | . . . . Utility 3 | 2 1 . . Device . | . . . . Storage 1 | 1 . . . Processor . | . . . . Hackware . | . . . . Protection 2 | 1 1 . . Artifact . | . . . . Weapon 4 | 2 1 1 . Energy Gun 2 | 1 . 1 . Energy Cannon . | . . . . Ballistic Gun 2 | 1 1 . . Ballistic Cannon . | . . . . Launcher . | . . . . Special Weapon . | . . . . Impact Weapon . | . . . . Slashing Weapon . | . . . . Piercing Weapon . | . . . . Special Melee Weapon . | . . . . Unidentified Prototypes . | . . . . Parts Lost 3 | . 1 . 2 Power . | . . . . Propulsion . | . . . . Utility 1 | . . . 1 Weapon 2 | . 1 . 1 Highest Loss Streak 2 | . 1 . 2 Average Slot Usage (%) 99 | . 99 100 98 Engine 11 | . 12 10 10 Leg 26 | . 25 30 30 Storage 11 | . 12 10 10 Protection 23 | . 25 20 18 Energy Gun 8 | . 7 10 10 Ballistic Gun 17 | . 16 20 20 Naked Turns . | . . . . Heaviest Build 21 | 18 20 21 21 Greatest Support 30 | 20 20 30 30 Greatest Overweight (x) 2 | 2 . . . Average Overweight (x) . | . . . . Largest Inventory Capacity 8 | 8 8 8 8 Average Capacity 7 | 7 8 8 8 Most Carried 8 | 8 7 6 5 Average Carried 5 | 5 4 5 5 Final Capacity 8 | 8 8 8 8 Final Carried 7 | 5 7 5 5 Class Distribution -------------------- 70% | Mutant 29% | Tank Dominant Class ---------------- Mutant | -10/Materials Tank | -9/Materials Tank | -9/Mines Resources | -11 -10 -9 -9 ----------- Run | Scr Mat Mat Min Matter Collected 357 | 166 155 36 . Remotely . | . . . . Salvage Created 244 | . 192 52 . Parts 8 | . 8 . . Haulers Intercepted . | . . . . Recyclers Shooed 1 | . 1 . . Parts Field Recycled . | . . . . Retrieved Matter . | . . . . Parts Self-Destructed . | . . . . Prevented . | . . . . Kills | -11 -10 -9 -9 ------- Run | Scr Mat Mat Min Combat Hostiles Destroyed 5 | . 4 1 . Guns 5 | . 4 1 . Classes Destroyed 3 | . 2 1 . Watcher 1 | . 1 . . Grunt 4 | . 4 . . Sentry 1 | . . 1 . Best Kill Streak 2 | . 2 1 . Combat Bots Only 2 | . 2 1 . Max Kills in Single Turn 1 | . 1 1 . Gunslinging . | . . . . Exploded . | . . . . Melee . | . . . . Uniques/NPCs Destroyed . | . . . . Combat | -11 -10 -9 -9 -------- Run | Scr Mat Mat Min Damage Taken 469 | . 186 36 247 Core 33 | . 16 . 17 Absorbed by Shields . | . . . . Core Remaining (%) 96 | 100 93 . . Volleys Fired 24 | . 22 2 . Largest 3 | . 2 3 . Hottest 80 | . 60 80 . Shots Fired 50 | . 44 6 . Gun 50 | . 44 6 . Cannon . | . . . . Launcher . | . . . . Special . | . . . . Kinetic 33 | . 29 4 . Thermal 17 | . 15 2 . Explosive . | . . . . Electromagnetic . | . . . . Robot Hit Streak 25 | . 25 10 . Robot Miss Streak 1 | . 1 . . Penetration Max . | . . . . Secondary Targets . | . . . . Shots Hit Robots 44 | . 39 5 . Core Hits 18 | . 16 2 . Critical Hits . | . . . . Critical Kills . | . . . . Critical Parts Destroyed . | . . . . Melee Attacks . | . . . . Impact . | . . . . Slashing . | . . . . Piercing . | . . . . Sneak Attacks . | . . . . Combat Hostiles . | . . . . Follow-up Attacks . | . . . . Damage Inflicted 405 | . 350 55 . Guns 405 | . 350 55 . Cannons . | . . . . Explosions . | . . . . Melee . | . . . . Ramming . | . . . . Kinetic 253 | . 208 45 . Thermal 152 | . 142 10 . Explosive . | . . . . Electromagnetic . | . . . . Impact . | . . . . Slashing . | . . . . Piercing . | . . . . Highest Corruption 1 | . 1 . . Average Corruption 1 | . 1 . . Corruption Purged . | . . . . Overload Shots . | . . . . Overflow Damage . | . . . . Projectiles . | . . . . Explosions . | . . . . Melee . | . . . . Knockbacks . | . . . . Impact . | . . . . Kinetic . | . . . . Secondary . | . . . . Self-Inflicted Damage . | . . . . Shots . | . . . . Rammed . | . . . . Targets Rammed . | . . . . Kicked . | . . . . Crushed . | . . . . Highest Temperature 217 | . 217 45 3 Average Temperature 76 | . 83 25 3 Received Heat Transfer 244 | . 177 27 40 Siege Activations . | . . . . Robots Corrupted . | . . . . Combat Hostiles . | . . . . Parts Fried . | . . . . Impact Corruptions . | . . . . Robots Melted . | . . . . Combat Hostiles . | . . . . Parts Melted . | . . . . Heat Transferred 350 | . 325 25 . Parts Sabotaged . | . . . . Parts Stolen . | . . . . Parts Stripped . | . . . . Power Chain Reactions . | . . . . Missiles Intercepted . | . . . . Alert | -11 -10 -9 -9 ------- Run | Scr Mat Mat Min Peak Influence 112 | . 112 78 26 Average Influence 37 | . 48 49 19 Maximum Alert Level . | . . . . Low Security (%) 100 | . . . . Level 1 . | . . . . Level 2 . | . . . . Level 3 . | . . . . Level 4 . | . . . . Level 5 . | . . . . High Security . | . . . . Max Security . | . . . . Squads Dispatched . | . . . . Investigation . | . . . . Extermination . | . . . . Reinforcement . | . . . . Assault . | . . . . Garrison . | . . . . Intercept . | . . . . Construction Impeded . | . . . . Haulers Reinforced . | . . . . Stealth | -11 -10 -9 -9 --------- Run | Scr Mat Mat Min Distress Signals . | . . . . Communications Jammed . | . . . . Distress Signals . | . . . . Times Spotted 21 | . 5 1 15 Peak Tracking Total 11 | . 2 1 11 Tactical Retreats . | . . . . Traps | -11 -10 -9 -9 ------- Run | Scr Mat Mat Min Traps Triggered 1 | . 1 . . Indirectly . | . . . . Trap Hack Attempts . | . . . . Triggered . | . . . . Disarmed . | . . . . Reprogrammed . | . . . . Reused . | . . . . Traps Extracted . | . . . . Installed . | . . . . Triggered . | . . . . Machines | -11 -10 -9 -9 ---------- Run | Scr Mat Mat Min Machines Disabled . | . . . . Max in Single Turn . | . . . . Machines Sabotaged . | . . . . Garrisons Compromised . | . . . . Overloaded Fab Kills . | . . . . Fab Network Shutdowns . | . . . . Hacking | -11 -10 -9 -9 --------- Run | Scr Mat Mat Min Machines Accessed 3 | . 3 . . Terminals 3 | . 3 . . Fabricators . | . . . . Repair Stations . | . . . . Recycling Units . | . . . . Scanalyzers . | . . . . Garrison Access . | . . . . Total Hacks 9 | . 9 . . Successful 7 | . 7 . . Failed 2 | . 2 . . Catastrophic . | . . . . Database Lockouts . | . . . . Manual 2 | . 2 . . Terminals 9 | . 9 . . Fabricators . | . . . . Repair Stations . | . . . . Recycling Units . | . . . . Scanalyzers . | . . . . Garrison Access . | . . . . Terminal Hacks 7 | . 7 . . Record 4 | . 4 . . Dispatch Records 1 | . 1 . . Assault Status 1 | . 1 . . Hauler Manifests 1 | . 1 . . Fabricator Hacks . | . . . . Repair Station Hacks . | . . . . Recycling Unit Hacks . | . . . . Scanalyzer . | . . . . Garrison Access Hacks . | . . . . Unauthorized Hacks . | . . . . Terminals . | . . . . Fabricators . | . . . . Repair Stations . | . . . . Recycling Units . | . . . . Scanalyzers . | . . . . Garrison Access . | . . . . Data Cores Recovered . | . . . . Used . | . . . . Hacking Detections 2 | . 2 . . Full Trace Events 1 | . 1 . . Feedback Events . | . . . . Feedback Blocked . | . . . . Robot Schematics Acquired . | . . . . Robots Built . | . . . . Matter . | . . . . Time . | . . . . Total Robot Build Rating . | . . . . Part Schematics Acquired . | . . . . Parts Built . | . . . . Matter . | . . . . Time . | . . . . Total Part Build Rating . | . . . . Parts Repaired . | . . . . Time . | . . . . Parts Recycled . | . . . . Recycled Matter . | . . . . Retrieved Matter . | . . . . Retrieved Components . | . . . . Parts Scanalyzed . | . . . . Part Schematics Acquired . | . . . . Parts Damaged . | . . . . Bothacking | -11 -10 -9 -9 ------------ Run | Scr Mat Mat Min Used RIF Installer . | . . . . Robots Hacked . | . . . . Non-combat . | . . . . Combat . | . . . . Robot Hacks Applied . | . . . . Relay Couplers Released . | . . . . Robots Rewired . | . . . . Allies Hacked . | . . . . Hacks Repelled . | . . . . Allies | -11 -10 -9 -9 -------- Run | Scr Mat Mat Min Total Allies . | . . . . Largest Group . | . . . . Highest-Rated Group . | . . . . Highest-Rated Ally . | . . . . Total Orders . | . . . . Ally Attacks . | . . . . Total Damage . | . . . . Kills . | . . . . Allies Corrupted . | . . . . Allies Melted . | . . . . Intel | -11 -10 -9 -9 ------- Run | Scr Mat Mat Min Robot Analysis Total . | . . . . Derelict Logs Recovered . | . . . . Drone Launches . | . . . . Drone Recoveries . | . . . . Exploration | -11 -10 -9 -9 ------------- Run | Scr Mat Mat Min Turns Passed 596 | 96 337 94 69 Spaces Moved 401 | 72 217 55 57 Core 14 | 14 . . . Treads . | . . . . Legs 387 | 58 217 55 57 Wheels . | . . . . Hover . | . . . . Flight . | . . . . Fastest Speed 50 | 50 120 120 120 Average Speed 117 | 107 120 120 120 Slowest Speed 150 | 150 120 120 120 Overloaded Moves . | . . . . Propulsion Burnouts . | . . . . Robots Hopped . | . . . . Cave-ins Triggered . | . . . . Exploration Rate (%) 16 | 4 32 7 21 Regions Visited 3 Branch Regions 1 Pre-discovered Areas . | . . . . Known Exits Taken 3 | 1 1 1 . Unknown Exits Taken . | . . . . Scrap Searched . | . . . . Spaces Dug . | . . . . Terrain Destroyed . | . . . . Melee . | . . . . Projectile . | . . . . AOE . | . . . . Actions | -11 -10 -9 -9 --------- Run | Scr Mat Mat Min Total 480 | 90 254 79 57 Wait 31 | . 10 21 . Move 398 | 71 216 54 57 Hop . | . . . . Pick Up 16 | 12 4 . . Fast Attach . | . . . . Attach 11 | 7 2 2 . Detach . | . . . . Swap . | . . . . Drop . | . . . . Fire 24 | . 22 2 . Melee . | . . . . Ram . | . . . . Kick . | . . . . Crush . | . . . . Escape Stasis . | . . . . Rewire . | . . . . Trap . | . . . . Miscellaneous . | . . . . Route ------- -11/Scrapyard -10/Materials -9/Materials -9/Mines History --------- Turn | Location | Event 38 | -11/Scrapyard | Identified exit to Materials 38 | -11/Scrapyard | Discovered exit to Materials (range 16) 97 | -11/Scrapyard | Entered Materials 97 | -10/Materials | Evolved 1 slot: Utility x1 321 | -10/Materials | Build established: Mutant 405 | -10/Materials | Identified exit to Materials 405 | -10/Materials | Discovered exit to Materials (range 16) 434 | -10/Materials | Entered another Materials area 434 | -9/Materials | Evolved 2 slots: Propulsion x1, Weapon x1 470 | -9/Materials | Identified exit to Mines 470 | -9/Materials | Discovered exit to Mines (range 16) 528 | -9/Materials | Entered Mines 535 | -9/Mines | Assembled infested the area 540 | -9/Mines | Assisted by a Guerilla fighting off Assembled 597 | -9/Mines | Self-destructed Last Messages --------------- 00572_ C-30 ARC bursts open, deploying its payload. 00572_ D-53 Grenadier unfolds itself. 00575_ HV Slug penetrates Wall. 00577_ HV Slug penetrates as-41121. 00577_ as-41121 knocked back. 00580_ OC-NWW(h) destroyed. 00580_ as-87352 destroyed. 00580_ as-89624 destroyed. 00580_ as-51968 destroyed. 00580_ as-41121 destroyed. 00582_ as-12436 destroyed. 00582_ Lgt. Armor Plating destroyed. 00582_ as-73684 destroyed. 00584_ as-44716 destroyed. 00589_ as-01527 destroyed. 00591_ The unstable cave ceiling collapses. 00591_ as-23988 destroyed. 00593_ Sml. Laser destroyed. 00594_ as-88198 destroyed. 00594_ as-19352 destroyed. Map ----- +----------------------------------------------------+ | ????# """ #?????# ##??????????????????? | | ????# """ ## #????## #####??????????????? | | ????# ## #???## """ ##?????[ ??????? | | ????# ## #??## """ " ### ?????? | | ????############ #### """ "%" #????????? | | ???????????????# " #??????????????? | | ???????????????# ###??????????????? | | ???????????????###### ##### ##????????????????? | | ????????????????????# ## #?????????????????? | | ????????????????????# ## #?????????????????? | | ???????????????????# # ##?????????????????? | | ??????????????????# ## #?????????????????? | | ????????????????? ## = ##?????????????????? | | ???????????????? ## ]% #?????????????????? | | ??????????????? ## #?????????????????? | | ?????????????? ###?## < ### #?????????????? | | ????????????? #????# #?????????????? | | ????????????? #?????## #####?????????????? | | ?????????????? ??????## d d#?????????????????? | | ?????????????????????# ##?????????????????? | | ?????????????????????# ##????????????????? | | ?????????????????????# #????????????????? | | ?????????????????????# ##???????????????? | | ?????????????????????# ##??????????????? | | ????????????????????## #??????????????? | | ????????????????????# @ a ????????? | | ??????????????# %% ????????? | | ??????????????# % ### ????????? | | ??????????????# ### = # #????#??????????? | | ??????????????????## ### #???????????????? | | ???????????????????### #???## ??????????????? | | ?????????????????????# ?????? a ????????????? | | ?????????????????????#* ???????#### ##???????????? | | ?????????????????????#%!????????????#????????????? | | ?????????????????????## ?????????????????????????? | | ??????????????????????##?????????????????????????? | | ?????????????????????????????????????????????????? | | ?????????????????????????????????????????????????? | | ?????????????????????????????????????????????????? | | ?????????????????????????????????????????????????? | | ?????????????????????????????????????????????????? | | ?????????????????????????????????????????????????? | | ?????????????????????????????????????????????????? | | ?????????????????????????????????????????????????? | | ?????????????????????????????????????????????????? | | ?????????????????????????????????????????????????? | | ?????????????????????????????????????????????????? | | ?????????????????????????????????????????????????? | | ?????????????????????????????????????????????????? | | ?????????????????????????????????????????????????? | +----------------------------------------------------+ Best States ------------- Heat Dissipation 28 Energy Generation 10 Energy Capacity 250 Matter Stores 300 Matter Capacity 300 Sight Range 16 Terrain Scan Density 10 Armor Coverage 150 Resistance: KI 35 Resistance: TH 35 Resistance: EX 35 Resistance: EM 35 Resistance: I 35 Resistance: S 35 Resistance: P 35 Power Shielding 33 Evasion (%) 50 Item Schematics ----------------- None Robot Schematics ------------------ None Fabricated ------------ Nothing Alien Tech Used ----------------- None Achievements -------------- None Challenges ------------ None Game ------ Seed InertialTiamatShockpuncher Manual? 0 Play Time 00:09:03 Cumulative 7.9 hours Start 2019.11.11 @ 11:11:05 End 2019.11.11 @ 11:20:00 Sessions 1 Manual Loads 0 Difficulty Explorer Special Mode None Game No. 32 Rogue 32 Adventurer 0 Explorer 5 Win Type - Total 0 Types 0/0/0/0/0/0/0 Lore% 17 Gallery% 13 Achievement% 13 Wizard Run 0 Options --------- ASCII 0 Keyboard 0 Movement Arrows Keybinds 0 Fullscreen 0 Font 14/X11Bold Map View 76x50 Tactical HUD 1 Map Filters NONE Filters NONE Steam 1 RUN: 67d0f4ca-ebe2-4976-a0c6-fb8ff3249b0d